fUSD/lending_fUSD_20240823
["ID","MTS","AMOUNT","RATE_DAILY","PERIOD"]
[335701398,1724448645875,-3553.90086326,0.00011,2]
[335701399,1724448645926,-376.87925389,0.00011,2]
[335701400,1724448645938,-2693.82653913,0.00011,2]
[335701401,1724448645999,-4681.0,0.00011,2]
[335701402,1724448646221,-64563.93887599,0.00011,2]
[335701403,1724448646232,-3625.5644,0.00011,2]
[335701404,1724448646243,-10310.39,0.00011,2]
[335701405,1724448646256,-498.05471884,0.00011,2]
[335701406,1724448646267,-306.5016076,0.00011,2]
[335701407,1724448646278,-362.2774596,0.00011,2]
[335701408,1724448646289,-1214.69466643,0.00011,2]
[335701409,1724448646300,-12798.92691549,0.00011,2]
[335701574,1724448781313,1238.9,9.994e-05,2]
[335701575,1724448795633,500.0,0.00026374,120]
[335701576,1724448801360,248.25,9.994e-05,2]
[335701577,1724448814921,250.0,9.994e-05,2]
[335701578,1724448826951,172.83,9.994e-05,2]
[335701579,1724448846399,640.0,9.994e-05,2]
[335701583,1724449129754,181.79,7.96e-05,2]
[335701586,1724449200743,543.39251436,9.648e-05,2]
[335701587,1724449210112,760.52558661,9.648e-05,2]
[335701588,1724449215181,403.1787819,9.648e-05,2]
[335701589,1724449239650,390.36,8.219e-05,2]
[335701590,1724449260247,1050.0,0.0001,2]
[335701591,1724449283872,23900.0,9.942e-05,2]
[335701592,1724449286104,1500.42312548,0.00025,64]
[335701593,1724449317971,201.4,9.934e-05,2]
[335701594,1724449329859,550.082406,0.00025,71]
[335701595,1724449336014,550.082406,0.00025,78]
[335701596,1724449340319,550.082406,0.00025,85]
[335701597,1724449344325,550.082406,0.00025,92]
[335701598,1724449357982,349.67037699,0.00027,120]
[335701599,1724449396461,500.0,0.00027,120]
[335701600,1724449405184,171.00436811,9.963e-05,2]
[335701601,1724449410455,488.0,9.941e-05,2]
[335701605,1724449637673,181.79,7.932e-05,2]
[335701606,1724449643578,249.27,9.919e-05,2]
[335701607,1724449733780,300.0,0.00025,60]
[335701608,1724449738670,171.00436811,9.997e-05,2]
[335701682,1724449776644,494.75,0.0001,2]
[335701683,1724449783977,1300.0,0.00027,120]
[335701684,1724449791626,298.176,0.00010009,2]
[335701685,1724449818218,201.4,9.928e-05,2]
[335701686,1724449820405,396.08,8.219e-05,2]
[335701687,1724449829193,485.07840464,0.00010009,2]
[335701700,1724449831865,-1453.41873983,0.00010097,2]
[335701701,1724449831879,-1717.99528872,0.00010097,2]
[335701702,1724449831890,-3244.6053012,0.00010097,2]
[335701703,1724449831899,-396.08,0.00010472,2]
[335701704,1724449831908,-300.0,0.00010504,2]
[335701705,1724449831917,-35.30406608,0.00010504,2]
[335701706,1724449831928,-264.69593392,0.00010504,2]
[335701707,1724449831937,-345.1675127,0.00010505,2]
[335701708,1724449831948,-3152.61260283,0.00010505,2]
[335701709,1724449831960,-899.999998,0.00010505,2]
[335701710,1724449831996,-1006.01418465,0.00010505,2]
[335701711,1724449832005,-343.36626588,0.00010505,2]
[335701712,1724449832015,-2008.40784548,0.00010699,2]
[335701713,1724449832024,-118.3403226,0.00010767,2]
[335701714,1724449832036,-31.6596774,0.00010767,2]
[335701715,1724449832045,-150.0,0.00010776,2]
[335701716,1724449832055,-1500.0,0.00010784,2]
[335701717,1724449832064,-499.99,0.00010786,2]
[335701718,1724449832073,-150.0,0.00010789,2]
[335701719,1724449832083,-2351.436,0.000108,2]
[335701720,1724449832092,-1500.0,0.0001083,2]
[335701721,1724449832102,-150.0,0.0001085,2]
[335701722,1724449832112,-150.0,0.0001086,2]
[335701723,1724449832121,-734.24357408,0.00010861,2]
[335701724,1724449832131,-155.0885737,0.00010882,2]
[335701725,1724449832140,-1500.0,0.00010886,2]
[335701726,1724449832150,-155.0,0.00010888,2]
[335701727,1724449832159,-419.42427568,0.00010888,2]
[335701728,1724449832168,-2096.20566282,0.0001089,2]
[335701730,1724449832178,-916.66666,0.0001089,2]
[335701731,1724449832187,-150.0,0.0001089,2]
[335701733,1724449832196,-172.97978311,0.0001089,2]
[335701735,1724449832205,-155.0,0.0001089,2]
[335701737,1724449832215,-168.79478605,0.0001089,2]
[335701739,1724449832225,-150.0,0.00010899,2]
[335701741,1724449832234,-155.0,0.00010899,2]
[335701743,1724449832244,-155.0,0.00010899,2]
[335701744,1724449832254,-2538.6134861,0.00010899,2]
[335701745,1724449832265,-158.46580991,0.000109,2]
[335701746,1724449832274,-750.9733,0.000109,2]
[335701747,1724449832283,-2062.6928,0.000109,2]
[335701748,1724449832292,-174.29338501,0.000109,2]
[335701749,1724449832302,-5328.47222614,0.000109,2]
[335701750,1724449832313,-3082.03617125,0.000109,2]
[335701751,1724449832324,-506.36173861,0.000109,2]
[335701752,1724449832335,-1100.52168804,0.000109,2]
[335701754,1724449837825,-835.77,0.000109,2]
[335701755,1724449837837,-8165.6999999,0.000109,2]
[335701756,1724449837885,-1522.84487017,0.000109,2]
[335701757,1724449837896,-2735.53908701,0.000109,2]
[335701758,1724449837907,-1284.70918352,0.000109,2]
[335701759,1724449837944,-0.05907554,0.000109,2]
[335701760,1724449837955,-211.55324507,0.000109,2]
[335701761,1724449837967,-288.92901183,0.000109,2]
[335701762,1724449837979,-255.3477856,0.000109,2]
[335701763,1724449837991,-836.12993967,0.000109,2]
[335701764,1724449838007,-625.26276512,0.000109,2]
[335701765,1724449838016,-625.26276505,0.00010907,2]
[335701766,1724449838025,-625.26276505,0.00010914,2]
[335701767,1724449838035,-625.26276505,0.00010921,2]
[335701768,1724449838044,-625.26276505,0.00010929,2]
[335701769,1724449838053,-500.0,0.0001093,2]
[335701770,1724449838062,-625.26276505,0.00010936,2]
[335701771,1724449838071,-150.0,0.00010938,2]
[335701772,1724449838080,-500.0,0.00010938,2]
[335701773,1724449838089,-625.26276505,0.00010943,2]
[335701774,1724449838098,-500.0,0.00010947,2]
[335701775,1724449838107,-454.75953035,0.00010949,2]
[335701776,1724449838117,-158.4658099,0.0001095,2]
[335701777,1724449838126,-500.0,0.00010956,2]
[335701778,1724449838135,-166.81,0.00010959,2]
[335701779,1724449838144,-158.38,0.00010959,2]
[335701780,1724449838153,-150.0,0.00010959,2]
[335701781,1724449838163,-267.36,0.00010959,2]
[335701782,1724449838172,-250.0,0.00010959,2]
[335701783,1724449838181,-2000.0,0.00010959,2]
[335701784,1724449838191,-500.0,0.00010965,2]
[335701785,1724449838200,-200.0,0.00010973,2]
[335701786,1724449838209,-500.0,0.00010974,2]
[335701787,1724449838218,-7287.38353713,0.00010977,2]
[335701788,1724449838227,-500.0,0.00010982,2]
[335701789,1724449838236,-244.19898355,0.00010984,2]
[335701790,1724449838246,-949.88761953,0.00010989,2]
[335701791,1724449838255,-500.0,0.00010991,2]
[335701792,1724449838265,-653.7077551,0.00010993,2]
[335701793,1724449838274,-1298.91557238,0.00010999,3]
[335701794,1724449838283,-1000.0,0.00010999,2]
[335701795,1724449838293,-339.69816211,0.00010999,2]
[335701796,1724449838302,-500.0,0.00010999,2]
[335701797,1724449838312,-500.0,0.00010999,2]
[335701798,1724449838321,-317.91382983,0.00010999,2]
[335701799,1724449838330,-500.0,0.00010999,2]
[335701800,1724449838338,-323.65369559,0.00010999,2]
[335701801,1724449838347,-500.0,0.00010999,2]
[335701802,1724449838356,-422.92322964,0.00010999,2]
[335701803,1724449838365,-605.596457,0.00010999,2]
[335701804,1724449838375,-500.0,0.00010999,2]
[335701805,1724449838384,-500.0,0.00010999,2]
[335701806,1724449838393,-500.0,0.00010999,2]
[335701807,1724449838402,-500.0,0.00010999,2]
[335701808,1724449838411,-500.0,0.00010999,2]
[335701809,1724449838420,-387.14,0.00010999,2]
[335701810,1724449838430,-500.0,0.00010999,2]
[335701811,1724449838440,-500.0,0.00010999,2]
[335701827,1724449838610,-500.0,0.00010999,2]
[335701829,1724449838620,-500.0,0.00010999,2]
[335701831,1724449838629,-263.15072629,0.00010999,2]
[335701833,1724449838638,-500.0,0.00010999,2]
[335701835,1724449838647,-406.18781871,0.00010999,2]
[335701837,1724449838656,-500.0,0.00010999,2]
[335701838,1724449838665,-500.0,0.00010999,2]
[335701839,1724449838674,-500.0,0.00010999,2]
[335701840,1724449838683,-500.0,0.00010999,2]
[335701841,1724449838691,-433.8910999,0.00010999,2]
[335701842,1724449838707,-66.1089001,0.00010999,2]
[335701843,1724449838716,-402.90104421,0.00010999,2]
[335701844,1724449838725,-184.6690683,0.00010999,2]
[335701846,1724449839848,-625.26276505,0.0001095,2]
[335701847,1724449839858,-99.43949835,0.00010999,2]
[335701848,1724449839867,-351.2977366,0.00010999,2]
[335701849,1724449840315,-148.7022634,0.00010999,2]
[335701850,1724449840325,-501.0468499,0.00010999,2]
[335701851,1724449840334,-500.0,0.00010999,2]
[335701852,1724449840343,-500.0,0.00010999,2]
[335701853,1724449840352,-500.0,0.00010999,2]
[335701854,1724449840361,-500.0,0.00010999,2]
[335701855,1724449840370,-500.0,0.00010999,2]
[335701856,1724449840379,-374.65015912,0.00010999,2]
[335701857,1724449840387,-500.0,0.00010999,2]
[335701858,1724449840397,-500.0,0.00010999,2]
[335701859,1724449840406,-500.0,0.00010999,2]
[335701860,1724449840415,-500.0,0.00010999,2]
[335701861,1724449840425,-500.0,0.00010999,2]
[335701862,1724449840435,-500.0,0.00010999,2]
[335701863,1724449840444,-500.0,0.00010999,2]
[335701864,1724449840454,-500.0,0.00010999,2]
[335701865,1724449840464,-500.0,0.00010999,2]
[335701866,1724449840473,-500.0,0.00010999,2]
[335701867,1724449840484,-500.0,0.00010999,2]
[335701868,1724449840493,-500.0,0.00010999,2]
[335701869,1724449840503,-500.0,0.00010999,2]
[335701870,1724449840512,-500.0,0.00010999,2]
[335701871,1724449840521,-500.0,0.00010999,2]
[335701872,1724449840532,-500.0,0.00010999,2]
[335701873,1724449840541,-500.0,0.00010999,2]
[335701874,1724449840550,-500.0,0.00010999,2]
[335701875,1724449840559,-500.0,0.00010999,2]
[335701876,1724449840568,-500.0,0.00010999,2]
[335701877,1724449840577,-470.40086407,0.00010999,2]
[335701878,1724449840586,-500.0,0.00010999,2]
[335701879,1724449840595,-297.77,0.00010999,2]
[335701880,1724449840604,-479.23100943,0.00010999,2]
[335701881,1724449840613,-500.0,0.00010999,2]
[335701882,1724449840622,-588.56829239,0.00010999,2]
[335701883,1724449840631,-500.0,0.00010999,2]
[335701884,1724449840640,-500.0,0.00010999,2]
[335701885,1724449840650,-500.0,0.00010999,2]
[335701886,1724449840658,-500.0,0.00010999,2]
[335701887,1724449840669,-500.0,0.00010999,2]
[335701888,1724449840679,-500.0,0.00010999,2]
[335701889,1724449840688,-500.0,0.00010999,2]
[335701890,1724449840698,-500.0,0.00010999,2]
[335701891,1724449840708,-500.0,0.00010999,2]
[335701892,1724449840717,-500.0,0.00010999,2]
[335701893,1724449840727,-500.0,0.00010999,2]
[335701894,1724449840737,-170.20903067,0.00010999,2]
[335701895,1724449840760,-329.79096933,0.00010999,2]
[335701896,1724449840769,-500.0,0.00010999,2]
[335701897,1724449840778,-500.0,0.00010999,2]
[335701898,1724449840787,-500.0,0.00010999,2]
[335701899,1724449840799,-500.0,0.00010999,2]
[335701900,1724449840808,-500.0,0.00010999,2]
[335701901,1724449840818,-500.0,0.00010999,2]
[335701902,1724449840827,-500.0,0.00010999,2]
[335701903,1724449840838,-500.0,0.00010999,2]
[335701904,1724449840848,-500.0,0.00010999,2]
[335701905,1724449840859,-500.0,0.00010999,2]
[335701906,1724449840870,-500.0,0.00010999,2]
[335701907,1724449840878,-500.0,0.00010999,2]
[335701908,1724449840887,-500.0,0.00010999,2]
[335701909,1724449840896,-500.0,0.00010999,2]
[335701910,1724449840905,-500.0,0.00010999,2]
[335701911,1724449840914,-500.0,0.00010999,2]
[335701912,1724449840923,-500.0,0.00010999,2]
[335701913,1724449840932,-405.69877827,0.00010999,2]
[335701914,1724449840941,-500.0,0.00010999,2]
[335701915,1724449840949,-500.0,0.00010999,2]
[335701916,1724449840959,-219.99599418,0.00010999,2]
[335701917,1724449840968,-500.0,0.00010999,2]
[335701918,1724449840977,-500.0,0.00010999,2]
[335701919,1724449840985,-500.0,0.00010999,2]
[335701920,1724449840997,-500.0,0.00010999,2]
[335701921,1724449841014,-500.0,0.00010999,2]
[335701922,1724449841023,-500.0,0.00010999,2]
[335701923,1724449841032,-500.0,0.00010999,2]
[335701924,1724449841040,-204.4597299,0.00010999,2]
[335701925,1724449841049,-500.0,0.00010999,2]
[335701926,1724449841058,-500.0,0.00010999,2]
[335701927,1724449841067,-500.0,0.00010999,2]
[335701928,1724449841077,-500.0,0.00010999,2]
[335701929,1724449841086,-500.0,0.00010999,2]
[335701930,1724449841095,-500.0,0.00010999,2]
[335701931,1724449841104,-500.0,0.00010999,2]
[335701932,1724449841113,-500.0,0.00010999,2]
[335701933,1724449841122,-400.0,0.00010999,2]
[335701934,1724449841131,-500.0,0.00010999,2]
[335701935,1724449841140,-500.0,0.00010999,2]
[335701936,1724449841150,-500.0,0.00010999,2]
[335701937,1724449841159,-500.0,0.00010999,2]
[335701938,1724449841168,-500.0,0.00010999,2]
[335701939,1724449841176,-500.0,0.00010999,2]
[335701940,1724449841186,-500.0,0.00010999,2]
[335701941,1724449841196,-500.0,0.00010999,2]
[335701942,1724449841206,-500.0,0.00010999,2]
[335701943,1724449841215,-500.0,0.00010999,2]
[335701944,1724449841224,-500.0,0.00010999,2]
[335701945,1724449841234,-500.0,0.00010999,2]
[335701946,1724449841244,-500.0,0.00010999,2]
[335701947,1724449841253,-500.0,0.00010999,2]
[335701948,1724449841262,-500.0,0.00010999,2]
[335701949,1724449841272,-261.37901549,0.00010999,2]
[335701950,1724449841281,-500.0,0.00010999,2]
[335701951,1724449841290,-500.0,0.00010999,2]
[335701952,1724449841300,-500.0,0.00010999,2]
[335701953,1724449841310,-500.0,0.00010999,2]
[335701954,1724449841320,-500.0,0.00010999,2]
[335701955,1724449841329,-500.0,0.00010999,2]
[335701956,1724449841339,-500.0,0.00010999,2]
[335701957,1724449841350,-500.0,0.00010999,2]
[335701958,1724449841361,-500.0,0.00010999,2]
[335701959,1724449841372,-2617444.7305208,0.00011,2]
[335701960,1724449841381,-250.0,0.00011,2]
[335701961,1724449841392,-37685.71,0.00011,3]
[335701962,1724449841402,-1014.73980812,0.00011,2]
[335701963,1724449841411,-500.0,0.00011,2]
[335701964,1724449841420,-618.24,0.00011,2]
[335701965,1724449841429,-325.63458192,0.00011005,2]
[335701966,1724449841438,-188.75297818,0.00011048,2]
[335701967,1724449841447,-1152.38165507,0.00011048,2]
[335701968,1724449841456,-1298.91557239,0.00011049,3]
[335701969,1724449841465,-500.0,0.00011049,2]
[335701970,1724449841475,-240.50321505,0.00011049,2]
[335701971,1724449841484,-500.0,0.00011049,2]
[335701972,1724449841493,-500.0,0.00011049,2]
[335701973,1724449841502,-500.0,0.00011049,2]
[335701974,1724449841511,-500.0,0.00011049,2]
[335701975,1724449841519,-500.0,0.00011049,2]
[335701976,1724449841529,-500.0,0.00011049,2]
[335701977,1724449841538,-500.0,0.00011049,2]
[335701978,1724449841547,-421.04414088,0.00011049,2]
[335701979,1724449841556,-250.23648198,0.00011049,2]
[335701980,1724449841565,-292.850875,0.00011049,2]
[335701981,1724449841575,-500.0,0.00011049,2]
[335701982,1724449841584,-240.20432258,0.00011049,2]
[335701983,1724449841594,-603166.1038867,0.0001105,2]
[335701984,1724449841610,-610.56382596,0.0001105,2]
[335701993,1724449842935,-10582.75058417,0.0001105,2]
[335701994,1724449842945,-15425.2663268,0.0001105,2]
[335701995,1724449842956,-96599.70881447,0.0001105,2]
[335701996,1724449842967,-16108.75,0.0001105,2]
[335701997,1724449842978,-630.49960277,0.0001105,2]
[335701998,1724449843033,-5993.487757,0.0001105,2]
[335701999,1724449843091,-437.50999998,0.0001105,2]
[335702014,1724449845804,-277.72958304,0.0001105,2]
[335702015,1724449845867,-1225.48002,0.0001105,2]
[335702016,1724449845986,-12642.24711282,0.0001105,2]
[335702039,1724449996421,500.0,0.00026442,120]
[335702042,1724450039054,3087.35849673,0.00027,120]
[335702043,1724450233379,-272.32,0.0001038,2]
[335702044,1724450233401,-542.84,0.0001062,2]
[335702045,1724450233424,-900.61659918,0.00010789,2]
[335702046,1724450233446,-6398.51135934,0.0001085,2]
[335702047,1724450233468,-300.0,0.00010887,2]
[335702048,1724450233490,-300.0,0.00010887,2]
[335702049,1724450233512,-3941.13698771,0.00010888,2]
[335702050,1724450233534,-158.93346,0.0001094,2]
[335702051,1724450233558,-150.0,0.00010949,2]
[335702052,1724450233581,-14496.15359377,0.0001095,2]
[335702053,1724450470417,276.81155444,9.998e-05,2]
[335702054,1724450488724,622.02098316,9.998e-05,2]
[335702055,1724450489603,1270.23398053,9.998e-05,2]
[335702056,1724450491511,291.75703505,9.998e-05,2]
[335702057,1724450492917,3074.12158258,9.998e-05,2]
[335702058,1724450501712,20413.47648282,9.998e-05,2]
[335702059,1724450550029,600.0,9.998e-05,2]
[335702060,1724450555589,482.91,8.219e-05,2]
[335702061,1724450577274,1270.23398053,9.998e-05,2]
[335702062,1724450588534,150.0,9.979e-05,2]
[335702063,1724450596517,500.0,0.00027,120]
[335702064,1724450614440,1000.0,9.992e-05,2]
[335702065,1724450619433,1917.79322439,9.998e-05,2]
[335702066,1724450619715,9248.6467552,9.998e-05,2]
[335702067,1724450679115,1267.31049374,9.998e-05,2]
[335702078,1724450766900,165.49,9.921e-05,2]
[335702079,1724450778635,1680.5,9.921e-05,2]
[335702080,1724450803744,715.3,9.926e-05,2]
[335702081,1724450825240,150.0,9.937e-05,2]
[335702083,1724450878182,23900.0,9.922e-05,2]
[335702084,1724450934042,394.76,9.922e-05,2]
[335702106,1724450950798,440.58,9.944e-05,2]
[335702107,1724450952305,161.12,9.944e-05,2]
[335702108,1724450963753,7883.52,9.932e-05,2]
[335702194,1724451031938,-1276.96040466,0.00010026,2]
[335702196,1724451031948,-200.0,0.0001003,2]
[335702197,1724451031957,-250.0,0.00010063,2]
[335702198,1724451031967,-155.0,0.00010097,2]
[335702199,1724451031976,-419.50258882,0.00010097,2]
[335702201,1724451031989,-454.83956636,0.00010097,2]
[335702203,1724451031999,-450.0,0.00010098,2]
[335702205,1724451032008,-1143.1984,0.00010168,2]
[335702207,1724451032017,-228.9244,0.00010168,2]
[335702209,1724451032026,-238.88,0.00010207,2]
[335702211,1724451032035,-155.0,0.00010471,2]
[335702213,1724451032044,-482.91,0.00010476,2]
[335702215,1724451032054,-300.0,0.00010504,2]
[335702217,1724451032063,-300.0,0.00010504,2]
[335702219,1724451032072,-499.99,0.00010505,2]
[335702221,1724451032081,-1011.45,0.00010505,2]
[335702223,1724451032091,-2675.02740798,0.00010699,2]
[335702225,1724451032101,-171.75045682,0.00010713,2]
[335702226,1724451032110,-672.50470955,0.00010774,2]
[335702227,1724451032119,-1500.0,0.00010785,2]
[335702228,1724451032128,-1500.0,0.00010786,2]
[335702229,1724451032137,-1500.0,0.00010854,2]
[335702230,1724451032146,-1500.0,0.00010856,2]
[335702231,1724451032157,-500.0,0.00010886,2]
[335702232,1724451032166,-500.0,0.00010894,2]
[335702233,1724451032175,-500.0,0.00010903,2]
[335702234,1724451032184,-1500.0,0.00010909,2]
[335702235,1724451032193,-500.0,0.00010912,2]
[335702236,1724451032202,-500.0,0.00010921,2]
[335702237,1724451032211,-500.0,0.0001093,2]
[335702238,1724451032220,-500.0,0.00010938,2]
[335702239,1724451032230,-916.66667,0.0001094,2]
[335702240,1724451032241,-916.66666,0.0001094,2]
[335702241,1724451032250,-500.0,0.00010947,2]
[335702242,1724451032259,-3450.03283489,0.00010949,2]
[335702243,1724451032268,-174.29338501,0.0001095,2]
[335702244,1724451032279,-182.01298739,0.0001095,2]
[335702245,1724451032289,-1051.41087913,0.0001095,2]
[335702246,1724451032299,-162.85453106,0.0001095,2]
[335702247,1724451032311,-30445.12422494,0.0001095,2]
[335702248,1724451032321,-199.58962518,0.0001095,2]
[335702249,1724451032331,-2486.0989,0.0001095,2]
[335702250,1724451032340,-500.0,0.00010956,2]
[335702251,1724451032349,-187.33,0.00010959,2]
[335702252,1724451032358,-250.0,0.00010959,2]
[335702253,1724451032368,-548.88,0.00010959,2]
[335702254,1724451032378,-500.0,0.00010961,2]
[335702255,1724451032388,-500.0,0.00010965,2]
[335702256,1724451032397,-500.0,0.00010974,2]
[335702257,1724451032407,-181.819684,0.00010975,2]
[335702258,1724451032416,-916.66667,0.0001098,2]
[335702259,1724451032425,-500.0,0.00010982,2]
[335702260,1724451032435,-500.0,0.00010991,2]
[335702261,1724451032444,-500.0,0.00010995,2]
[335702262,1724451032453,-500.0,0.00010995,2]
[335702263,1724451032463,-500.0,0.00010995,2]
[335702264,1724451032473,-500.0,0.00010995,2]
[335702265,1724451032482,-500.0,0.00010995,2]
[335702266,1724451032491,-383.7466,0.00010995,2]
[335702267,1724451032501,-500.0,0.00010995,2]
[335702269,1724451032510,-500.0,0.00010995,2]
[335702270,1724451032519,-500.0,0.00010995,2]
[335702272,1724451032529,-500.0,0.00010995,2]
[335702273,1724451032539,-500.0,0.00010995,2]
[335702274,1724451032548,-500.0,0.00010995,2]
[335702275,1724451032557,-500.0,0.00010995,2]
[335702276,1724451032567,-500.0,0.00010995,2]
[335702277,1724451032576,-505.043,0.00010995,2]
[335702278,1724451032585,-1138.72684577,0.00010996,2]
[335702279,1724451032594,-500.0,0.00010999,2]
[335702280,1724451032604,-500.0,0.00010999,2]
[335702281,1724451032613,-500.0,0.00010999,2]
[335702282,1724451032622,-500.0,0.00010999,2]
[335702283,1724451032631,-500.0,0.00010999,2]
[335702284,1724451032640,-500.0,0.00010999,2]
[335702285,1724451032651,-500.0,0.00010999,2]
[335702286,1724451032661,-500.0,0.00010999,2]
[335702287,1724451032670,-500.0,0.00010999,2]
[335702288,1724451032679,-500.0,0.00010999,2]
[335702289,1724451032689,-500.0,0.00010999,2]
[335702290,1724451032698,-250.0,0.00011,2]
[335702291,1724451032707,-500.0,0.00011,2]
[335702292,1724451032717,-525.5,0.00011,2]
[335702293,1724451032727,-916.66667,0.0001102,2]
[335702294,1724451032735,-169.52892449,0.00011047,2]
[335702295,1724451032745,-556.8896,0.00011049,2]
[335702296,1724451032754,-1746.18,0.00011049,2]
[335702297,1724451032762,-1746.18,0.00011049,2]
[335702298,1724451032771,-1746.18,0.00011049,2]
[335702299,1724451032780,-1746.18,0.00011049,2]
[335702300,1724451032789,-1746.18,0.00011049,2]
[335702301,1724451032798,-1746.18,0.00011049,2]
[335702302,1724451032807,-1746.18,0.00011049,2]
[335702303,1724451032816,-1746.18,0.00011049,2]
[335702304,1724451032825,-1746.18,0.00011049,2]
[335702305,1724451032834,-1746.18,0.00011049,2]
[335702306,1724451032844,-1746.18,0.00011049,2]
[335702307,1724451032853,-1746.18,0.00011049,2]
[335702308,1724451032862,-1746.18,0.00011049,2]
[335702309,1724451032871,-1746.18,0.00011049,2]
[335702310,1724451032881,-1746.18,0.00011049,2]
[335702311,1724451032890,-1746.18,0.00011049,2]
[335702312,1724451032899,-1746.18,0.00011049,2]
[335702313,1724451032908,-1746.18,0.00011049,2]
[335702314,1724451032918,-1746.18,0.00011049,2]
[335702315,1724451032927,-1746.18,0.00011049,2]
[335702316,1724451032936,-1746.18,0.00011049,2]
[335702317,1724451032949,-1746.18,0.00011049,2]
[335702318,1724451032959,-1746.18,0.00011049,2]
[335702319,1724451032968,-1746.37,0.00011049,2]
[335702320,1724451032978,-632.85,0.00011049,2]
[335702321,1724451032987,-632.85,0.00011049,2]
[335702322,1724451032996,-632.85,0.00011049,2]
[335702323,1724451033006,-632.85,0.00011049,2]
[335702324,1724451033016,-632.85,0.00011049,2]
[335702325,1724451033025,-632.85,0.00011049,2]
[335702326,1724451033035,-632.85,0.00011049,2]
[335702327,1724451033045,-632.85,0.00011049,2]
[335702328,1724451033054,-632.85,0.00011049,2]
[335702329,1724451033064,-632.85,0.00011049,2]
[335702330,1724451033078,-632.85,0.00011049,2]
[335702331,1724451033087,-632.85,0.00011049,2]
[335702332,1724451033097,-632.85,0.00011049,2]
[335702333,1724451033105,-632.85,0.00011049,2]
[335702334,1724451033115,-632.85,0.00011049,2]
[335702335,1724451033124,-632.85,0.00011049,2]
[335702336,1724451033133,-632.85,0.00011049,2]
[335702337,1724451033143,-632.85,0.00011049,2]
[335702338,1724451033152,-632.85,0.00011049,2]
[335702339,1724451033163,-632.85,0.00011049,2]
[335702340,1724451033173,-632.85,0.00011049,2]
[335702341,1724451033183,-632.85,0.00011049,2]
[335702342,1724451033193,-632.85,0.00011049,2]
[335702343,1724451033202,-633.0301259,0.00011049,2]
[335702344,1724451033212,-500.0,0.00011049,2]
[335702345,1724451033222,-500.0,0.00011049,2]
[335702346,1724451033235,-413.61480078,0.00011049,2]
[335702347,1724451033245,-500.0,0.00011049,2]
[335702348,1724451033255,-500.0,0.00011049,2]
[335702349,1724451033265,-500.0,0.00011049,2]
[335702350,1724451033275,-500.0,0.00011049,2]
[335702351,1724451033285,-500.0,0.00011049,2]
[335702352,1724451033295,-500.0,0.00011049,2]
[335702353,1724451033307,-500.0,0.00011049,2]
[335702354,1724451033316,-351.52064713,0.00011049,2]
[335702355,1724451033327,-500.0,0.00011049,2]
[335702356,1724451033337,-500.0,0.00011049,2]
[335702357,1724451033348,-500.0,0.00011049,2]
[335702358,1724451033358,-500.0,0.00011049,2]
[335702359,1724451033367,-500.0,0.00011049,2]
[335702360,1724451033377,-500.0,0.00011049,2]
[335702361,1724451033386,-500.0,0.00011049,2]
[335702362,1724451033396,-500.0,0.00011049,2]